fUST/lending_fUST_20240919
["ID","MTS","AMOUNT","RATE_DAILY","PERIOD"]
[338580316,1726745454668,-682.03,0.00016986,2]
[338580317,1726745454677,-500.0,0.00016986,2]
[338580318,1726745454687,-617.83,0.00016986,2]
[338580319,1726745454696,-500.0,0.00016986,2]
[338580320,1726745454706,-500.0,0.00016986,2]
[338580321,1726745454717,-500.0,0.00016986,2]
[338580322,1726745454727,-500.0,0.00016986,2]
[338580323,1726745454737,-1454.38,0.00016986,2]
[338580324,1726745454746,-1996.198314,0.00016986,2]
[338580325,1726745454756,-1996.198314,0.00016986,2]
[338580326,1726745454765,-500.0,0.00016986,2]
[338580327,1726745454776,-1996.198314,0.00016986,2]
[338580328,1726745454785,-740.58,0.00016986,2]
[338580329,1726745454795,-1996.198314,0.00016986,2]
[338580330,1726745454805,-500.0,0.00016986,2]
[338580331,1726745454815,-151.0,0.00016986,2]
[338580332,1726745454825,-151.0,0.00016986,2]
[338580333,1726745454834,-601.62,0.00016986,2]
[338580334,1726745454845,-447.72184984,0.00016986,2]
[338580335,1726745454855,-500.0,0.00016986,2]
[338580336,1726745454864,-629.748188,0.00016986,2]
[338580337,1726745454873,-500.0,0.00016986,2]
[338580338,1726745454883,-500.0,0.00016986,2]
[338580339,1726745454893,-500.0,0.00016986,2]
[338580340,1726745454903,-1615.86,0.00016986,2]
[338580341,1726745454913,-624.29,0.00016986,2]
[338580342,1726745454923,-334.77902225,0.00016986,2]
[338580343,1726745454933,-599.07,0.00016986,2]
[338580344,1726745454942,-500.0,0.00016986,2]
[338580345,1726745454952,-500.0,0.00016986,2]
[338580346,1726745454962,-151.0,0.00016986,2]
[338580347,1726745454971,-151.0,0.00016986,2]
[338580348,1726745454980,-500.0,0.00016986,2]
[338580349,1726745454990,-151.0,0.00016986,2]
[338580350,1726745454999,-151.0,0.00016986,2]
[338580351,1726745455009,-500.0,0.00016986,2]
[338580352,1726745455018,-500.0,0.00016986,2]
[338580353,1726745455027,-151.0,0.00016986,2]
[338580354,1726745455037,-189.979848,0.00016986,2]
[338580355,1726745455046,-1017.87,0.00016986,2]
[338580356,1726745455056,-500.0,0.00016986,2]
[338580357,1726745455065,-500.0,0.00016986,2]
[338580358,1726745455075,-151.0,0.00016986,2]
[338580359,1726745455085,-151.0,0.00016986,2]
[338580360,1726745455095,-616.10599436,0.00016986,2]
[338580361,1726745455104,-500.0,0.00016986,2]
[338580362,1726745455114,-706.51,0.00016986,2]
[338580363,1726745455123,-500.0,0.00016986,2]
[338580364,1726745455133,-500.0,0.00016986,2]
[338580365,1726745455143,-500.0,0.00016986,2]
[338580366,1726745455152,-500.0,0.00016986,2]
[338580367,1726745455161,-580.67,0.00016986,2]
[338580368,1726745455171,-500.0,0.00016986,2]
[338580369,1726745455181,-500.0,0.00016986,2]
[338580370,1726745455190,-500.0,0.00016986,2]
[338580371,1726745455200,-500.0,0.00016986,2]
[338580372,1726745455209,-190.39031092,0.00016986,2]
[338580373,1726745455219,-500.0,0.00016986,2]
[338580374,1726745455228,-500.0,0.00016986,2]
[338580375,1726745455238,-847.55,0.00016986,2]
[338580376,1726745455247,-500.0,0.00016986,2]
[338580377,1726745455256,-755.15,0.00016986,2]
[338580378,1726745455265,-689.91,0.00016986,2]
[338580379,1726745455275,-559.66,0.00016986,2]
[338580380,1726745455284,-500.0,0.00016986,2]
[338580381,1726745455294,-500.0,0.00016986,2]
[338580382,1726745455303,-500.0,0.00016986,2]
[338580383,1726745455312,-500.0,0.00016986,2]
[338580384,1726745455321,-500.0,0.00016986,2]
[338580385,1726745455330,-500.0,0.00016986,2]
[338580386,1726745455340,-500.0,0.00016986,2]
[338580387,1726745455349,-500.0,0.00016986,2]
[338580388,1726745455359,-500.0,0.00016986,2]
[338580389,1726745455368,-923.86,0.00016986,2]
[338580390,1726745455377,-500.0,0.00016986,2]
[338580391,1726745455388,-2410.95,0.00016986,2]
[338580392,1726745455397,-151.0,0.00016986,2]
[338580393,1726745455407,-151.0,0.00016986,2]
[338580394,1726745455416,-714.13,0.00016986,2]
[338580395,1726745455426,-814.61,0.00016986,2]
[338580396,1726745455435,-500.0,0.00016986,2]
[338580397,1726745455445,-500.0,0.00016986,2]
[338580398,1726745455454,-500.0,0.00016986,2]
[338580399,1726745455466,-1189.77,0.00016986,2]
[338580400,1726745455475,-500.0,0.00016986,2]
[338580401,1726745455485,-596.19,0.00016986,2]
[338580402,1726745455494,-180.948553,0.00016986,2]
[338580403,1726745455503,-180.948553,0.00016986,2]
[338580404,1726745455513,-151.0,0.00016986,2]
[338580405,1726745455523,-500.0,0.00016986,2]
[338580406,1726745455532,-151.0,0.00016986,2]
[338580407,1726745455541,-180.948553,0.00016986,2]
[338580408,1726745455550,-180.948553,0.00016986,2]
[338580409,1726745455560,-1011.64,0.00016986,2]
[338580410,1726745455569,-500.0,0.00016986,2]
[338580411,1726745455579,-601.85,0.00016986,2]
[338580412,1726745455588,-550.50159571,0.00016986,2]
[338580413,1726745455597,-500.0,0.00016986,2]
[338580414,1726745455606,-500.0,0.00016986,2]
[338580415,1726745455616,-500.0,0.00016986,2]
[338580416,1726745455625,-1816.62,0.00016986,2]
[338580417,1726745455635,-1823.38,0.00016986,2]
[338580418,1726745455645,-500.0,0.00016986,2]
[338580419,1726745455654,-911.58,0.00016986,2]
[338580420,1726745455663,-500.0,0.00016986,2]
[338580421,1726745455673,-1181.93,0.00016986,2]
[338580422,1726745455682,-1269.83,0.00016986,2]
[338580423,1726745455691,-1033.25,0.00016986,2]
[338580424,1726745455701,-500.0,0.00016986,2]
[338580425,1726745455710,-535.56,0.00016986,2]
[338580426,1726745455719,-391.98520822,0.00016986,2]
[338580427,1726745455729,-500.0,0.00016986,2]
[338580428,1726745455738,-500.0,0.00016986,2]
[338580429,1726745455748,-798.79,0.00016986,2]
[338580430,1726745455758,-773.96,0.00016986,2]
[338580431,1726745455767,-1537.52,0.00016986,2]
[338580432,1726745455777,-500.0,0.00016986,2]
[338580433,1726745455787,-533.0,0.00016986,2]
[338580434,1726745455796,-500.0,0.00016986,2]
[338580435,1726745455806,-965.79,0.00016986,2]
[338580436,1726745455815,-500.0,0.00016986,2]
[338580437,1726745455825,-925.93,0.00016986,2]
[338580438,1726745455834,-510.52,0.00016986,2]
[338580439,1726745455844,-500.0,0.00016986,2]
[338580440,1726745455854,-500.0,0.00016986,2]
[338580441,1726745455863,-511.06,0.00016986,2]
[338580442,1726745455872,-717.35,0.00016986,2]
[338580443,1726745455882,-500.0,0.00016986,2]
[338580444,1726745455893,-982.08,0.00016986,2]
[338580445,1726745455902,-258.713938,0.00016986,2]
[338580446,1726745455912,-500.0,0.00016986,2]
[338580447,1726745455922,-500.0,0.00016986,2]
[338580448,1726745455931,-500.0,0.00016986,2]
[338580449,1726745455941,-151.0,0.00016986,2]
[338580450,1726745455951,-151.0,0.00016986,2]
[338580451,1726745455960,-151.0,0.00016986,2]
[338580452,1726745455970,-151.0,0.00016986,2]
[338580453,1726745455979,-892.49,0.00016986,2]
[338580454,1726745455989,-1305.64,0.00016986,2]
[338580455,1726745455998,-500.0,0.00016986,2]
[338580456,1726745456007,-383.39114892,0.00016986,2]
[338580457,1726745456016,-215.88256,0.00016986,2]
[338580458,1726745456026,-151.0,0.00016986,2]
[338580459,1726745456035,-151.0,0.00016986,2]
[338580460,1726745456045,-821.31,0.00016986,2]
[338580461,1726745456054,-257.51735784,0.00016986,2]
[338580462,1726745456063,-500.0,0.00016986,2]
[338580463,1726745456074,-500.0,0.00016986,2]
[338580464,1726745456085,-500.0,0.00016986,2]
[338580465,1726745456095,-500.0,0.00016986,2]
[338580466,1726745456104,-500.0,0.00016986,2]
[338580467,1726745456114,-500.0,0.00016986,2]
[338580468,1726745456123,-500.0,0.00016986,2]
[338580469,1726745456136,-1443.16,0.00016986,2]
[338580470,1726745456151,-979.85,0.00016986,2]
[338580471,1726745456162,-500.0,0.00016986,2]
[338580472,1726745456173,-1427.25,0.00016986,2]
[338580473,1726745456182,-151.0,0.00016986,2]
[338580474,1726745456191,-151.0,0.00016986,2]
[338580475,1726745456201,-3229.684567,0.00016986,2]
[338580476,1726745456210,-3229.684567,0.00016986,2]
[338580477,1726745456219,-538.45,0.00016986,2]
[338580478,1726745456229,-816.04,0.00016986,2]
[338580479,1726745456238,-754.27,0.00016986,2]
[338580480,1726745456247,-1738.75,0.00016986,2]
[338580481,1726745456257,-3229.684567,0.00016986,2]
[338580482,1726745456267,-500.0,0.00016986,2]
[338580483,1726745456276,-3229.684567,0.00016986,2]
[338580484,1726745456286,-500.0,0.00016986,2]
[338580485,1726745456295,-886.05,0.00016986,2]
[338580486,1726745456304,-547.84,0.00016986,2]
[338580487,1726745456314,-500.0,0.00016986,2]
[338580488,1726745456323,-1949.76,0.00016986,2]
[338580489,1726745456333,-718.87,0.00016986,2]
[338580490,1726745456342,-1352.21,0.00016986,2]
[338580491,1726745456351,-151.0,0.00016986,2]
[338580492,1726745456360,-151.0,0.00016986,2]
[338580493,1726745456369,-500.0,0.00016986,2]
[338580494,1726745456379,-1872.82532,0.00016986,2]
[338580495,1726745456388,-1872.82532,0.00016986,2]
[338580496,1726745456397,-1121.5,0.00016986,2]
[338580497,1726745456407,-500.0,0.00016986,2]
[338580498,1726745456416,-1872.82532,0.00016986,2]
[338580499,1726745456426,-1872.82532,0.00016986,2]
[338580500,1726745456436,-793.84,0.00016986,2]
[338580501,1726745456446,-268.550748,0.00016986,2]
[338580502,1726745456456,-268.550748,0.00016986,2]
[338580503,1726745456468,-500.0,0.00016986,2]
[338580504,1726745456477,-268.550748,0.00016986,2]
[338580505,1726745456487,-268.550748,0.00016986,2]
[338580506,1726745456496,-500.0,0.00016986,2]
[338580507,1726745456506,-902.76,0.00016986,2]
[338580508,1726745456515,-500.0,0.00016986,2]
[338580509,1726745456525,-500.0,0.00016986,2]
[338580510,1726745456535,-798.22,0.00016986,2]
[338580511,1726745456545,-2207.32,0.00016986,2]
[338580512,1726745456556,-2283.98,0.00016986,2]
[338580513,1726745456565,-911.72,0.00016986,2]
[338580514,1726745456575,-500.0,0.00016986,2]
[338580515,1726745456584,-500.0,0.00016986,2]
[338580516,1726745456593,-914.97,0.00016986,2]
[338580517,1726745456602,-696.45,0.00016986,2]
[338580518,1726745456612,-500.0,0.00016986,2]
[338580519,1726745456621,-863.47,0.00016986,2]
[338580520,1726745456631,-500.0,0.00016986,2]
[338580521,1726745456640,-500.0,0.00016986,2]
[338580522,1726745456650,-500.0,0.00016986,2]
[338580523,1726745456659,-500.0,0.00016986,2]
[338580524,1726745456668,-500.0,0.00016986,2]
[338580525,1726745456678,-683.64,0.00016986,2]
[338580526,1726745456687,-835.17,0.00016986,2]
[338580527,1726745456696,-500.0,0.00016986,2]
[338580528,1726745456706,-500.0,0.00016986,2]
[338580529,1726745456715,-907.83,0.00016986,2]
[338580530,1726745456724,-500.0,0.00016986,2]
[338580531,1726745456734,-500.0,0.00016986,2]
[338580532,1726745456743,-151.0,0.00016986,2]
[338580533,1726745456753,-151.0,0.00016986,2]
[338580534,1726745456763,-500.0,0.00016986,2]
[338580535,1726745456772,-508.83,0.00016986,2]
[338580536,1726745456782,-264.22554616,0.00016986,2]
[338580537,1726745456792,-1021.41,0.00016986,2]
[338580538,1726745456801,-500.0,0.00016986,2]
[338580539,1726745456811,-151.0,0.00016986,2]
[338580540,1726745456820,-151.0,0.00016986,2]
[338580541,1726745456830,-525.13,0.00016986,2]
[338580542,1726745456839,-502.64744636,0.00016986,2]
[338580543,1726745456849,-151.0,0.00016986,2]
[338580544,1726745456858,-151.0,0.00016986,2]
[338580545,1726745456867,-151.0,0.00016986,2]
[338580546,1726745456876,-500.0,0.00016986,2]
[338580547,1726745456886,-530.54,0.00016986,2]
[338580548,1726745456897,-929.36,0.00016986,2]
[338580549,1726745456906,-655.79,0.00016986,2]
[338580550,1726745456917,-500.0,0.00016986,2]
[338580551,1726745456927,-556.102585,0.00016986,2]
[338580552,1726745456939,-556.102585,0.00016986,2]
[338580553,1726745456948,-556.102585,0.00016986,2]
[338580554,1726745456958,-556.102585,0.00016986,2]
[338580555,1726745456968,-500.0,0.00016986,2]
[338580556,1726745456978,-500.0,0.00016986,2]
[338580557,1726745456988,-500.0,0.00016986,2]
[338580558,1726745456997,-804.031865,0.00016986,2]
[338580559,1726745457006,-804.031865,0.00016986,2]
[338580560,1726745457015,-500.0,0.00016986,2]
[338580561,1726745457024,-1203.66,0.00016986,2]
[338580562,1726745457033,-500.0,0.00016986,2]
[338580563,1726745457043,-804.031865,0.00016986,2]
[338580564,1726745457052,-804.031865,0.00016986,2]
[338580565,1726745457061,-500.0,0.00016986,2]
[338580566,1726745457071,-728.59,0.00016986,2]
[338580567,1726745457081,-500.0,0.00016986,2]
[338580568,1726745457090,-800.808666,0.00016986,2]
[338580569,1726745457099,-800.808666,0.00016986,2]
[338580570,1726745457108,-500.0,0.00016986,2]
[338580571,1726745457118,-500.0,0.00016986,2]
[338580572,1726745457127,-500.0,0.00016986,2]
[338580573,1726745457137,-1726.45,0.00016986,2]
[338580574,1726745457147,-716.43,0.00016986,2]
[338580575,1726745457157,-800.808666,0.00016986,2]
[338580576,1726745457167,-800.808666,0.00016986,2]
[338580577,1726745457176,-500.0,0.00016986,2]
[338580578,1726745457185,-660.93,0.00016986,2]
[338580579,1726745457195,-500.0,0.00016986,2]
[338580580,1726745457205,-543.15415444,0.00016986,2]
[338580581,1726745457214,-151.0,0.00016986,2]
[338580582,1726745457224,-151.0,0.00016986,2]
[338580583,1726745457233,-500.0,0.00016986,2]
[338580584,1726745457243,-500.0,0.00016986,2]
[338580585,1726745457252,-1254.1,0.00016986,2]
[338580586,1726745457262,-519.62304391,0.00016986,2]
[338580587,1726745457271,-2664.97,0.00016986,2]
[338580588,1726745457280,-787.1,0.00016986,2]
[338580589,1726745457289,-253.707808,0.00016986,2]
[338580590,1726745457298,-253.707808,0.00016986,2]
[338580591,1726745457308,-504.66715886,0.00016986,2]
[338580592,1726745457317,-500.0,0.00016986,2]
[338580593,1726745457326,-668.97,0.00016986,2]
[338580594,1726745457335,-598.66,0.00016986,2]
[338580595,1726745457344,-327.549987,0.00016986,2]
[338580596,1726745457353,-253.707808,0.00016986,2]
[338580597,1726745457362,-327.549987,0.00016986,2]
[338580598,1726745457372,-253.707808,0.00016986,2]
[338580599,1726745457381,-500.0,0.00016986,2]
[338580600,1726745457390,-263.12,0.00016986,2]
[338580601,1726745457402,-500.0,0.00016986,2]
[338580602,1726745457411,-327.549987,0.00016986,2]
[338580603,1726745457421,-327.549987,0.00016986,2]
[338580604,1726745457430,-713.08,0.00016986,2]
[338580605,1726745457440,-151.0,0.00016986,2]
[338580606,1726745457449,-500.0,0.00016986,2]
[338580607,1726745457459,-500.0,0.00016986,2]
[338580608,1726745457472,-500.0,0.00016986,2]
[338580609,1726745457481,-1827.31,0.00016986,2]
[338580610,1726745457490,-151.0,0.00016986,2]
[338580611,1726745457499,-500.0,0.00016986,2]
[338580612,1726745457509,-1453.15,0.00016986,2]
[338580613,1726745457517,-500.0,0.00016986,2]
[338580614,1726745457526,-468.8,0.00016986,2]
[338580615,1726745457536,-1475.83,0.00016986,2]
[338580616,1726745457545,-500.0,0.00016986,2]
[338580617,1726745457555,-500.0,0.00016986,2]
[338580618,1726745457565,-2327.77,0.00016986,2]
[338580619,1726745457574,-294.00865326,0.00016986,2]
[338580620,1726745457583,-500.0,0.00016986,2]
[338580621,1726745457593,-813.2,0.00016986,2]
[338580622,1726745457602,-500.0,0.00016986,2]
[338580623,1726745457611,-842.57,0.00016986,2]
[338580624,1726745457621,-1835.05,0.00016986,2]
[338580625,1726745457630,-500.0,0.00016986,2]
[338580626,1726745457640,-500.0,0.00016986,2]
[338580627,1726745457650,-151.0,0.00016986,2]
[338580628,1726745457660,-151.0,0.00016986,2]
[338580629,1726745457670,-500.0,0.00016986,2]
[338580630,1726745457679,-500.0,0.00016986,2]
[338580631,1726745457689,-1094.22,0.00016986,2]
[338580632,1726745457698,-614.427804,0.00016986,2]
[338580633,1726745457708,-614.427804,0.00016986,2]
[338580634,1726745457718,-1386.11,0.00016986,2]
[338580635,1726745457728,-500.0,0.00016986,2]
[338580636,1726745457738,-614.427804,0.00016986,2]
[338580637,1726745457747,-500.0,0.00016986,2]
[338580638,1726745457757,-614.427804,0.00016986,2]
[338580639,1726745457766,-500.0,0.00016986,2]
[338580640,1726745457776,-500.0,0.00016986,2]
[338580641,1726745457786,-976.67,0.00016986,2]
[338580642,1726745457796,-500.0,0.00016986,2]
[338580643,1726745457806,-500.0,0.00016986,2]
[338580644,1726745457816,-500.0,0.00016986,2]
[338580645,1726745457826,-500.0,0.00016986,2]
[338580646,1726745457835,-500.0,0.00016986,2]
[338580647,1726745457845,-2178.93,0.00016986,2]
[338580648,1726745457854,-1248.980744,0.00016986,2]
[338580649,1726745457865,-1248.980744,0.00016986,2]
[338580650,1726745457875,-841.22,0.00016986,2]
[338580651,1726745457885,-500.0,0.00016986,2]
[338580652,1726745457895,-1248.980744,0.00016986,2]
[338580653,1726745457905,-1248.980744,0.00016986,2]
[338580654,1726745457914,-500.0,0.00016986,2]
[338580655,1726745457923,-1419.98,0.00016986,2]
[338580656,1726745457932,-500.0,0.00016986,2]
[338580657,1726745457941,-500.81551372,0.00016986,2]
[338580658,1726745457951,-7789.48,0.00016986,2]
[338580659,1726745457961,-1079.81,0.00016986,2]
[338580660,1726745457971,-151.0,0.00016986,2]
[338580661,1726745457980,-151.0,0.00016986,2]
[338580662,1726745457990,-500.0,0.00016986,2]
[338580663,1726745457999,-1214.75,0.00016986,2]
[338580664,1726745458009,-500.0,0.00016986,2]
[338580665,1726745458018,-896.34,0.00016986,2]
[338580666,1726745458027,-151.0,0.00016986,2]
[338580667,1726745458037,-1612.07,0.00016986,2]
[338580668,1726745458047,-151.0,0.00016986,2]
[338580669,1726745458058,-500.0,0.00016986,2]
[338580670,1726745458067,-500.0,0.00016986,2]
[338580671,1726745458077,-600.1,0.00016986,2]
[338580672,1726745458086,-861.973197,0.00016986,2]
[338580673,1726745458095,-861.973197,0.00016986,2]
[338580674,1726745458104,-151.0,0.00016986,2]
[338580675,1726745458114,-151.0,0.00016986,2]
[338580676,1726745458123,-2899.512621,0.00016986,2]
[338580677,1726745458133,-627.13,0.00016986,2]
[338580678,1726745458143,-2899.512621,0.00016986,2]
[338580679,1726745458152,-861.973197,0.00016986,2]
[338580680,1726745458163,-500.88986709,0.00016986,2]
[338580681,1726745458172,-861.973197,0.00016986,2]
[338580682,1726745458182,-500.0,0.00016986,2]
[338580683,1726745458196,-2899.512621,0.00016986,2]
[338580684,1726745458222,-2899.512621,0.00016986,2]
[338580685,1726745458234,-500.0,0.00016986,2]
[338580686,1726745458243,-500.0,0.00016986,2]
[338580687,1726745458252,-630.76,0.00016986,2]
[338580688,1726745458261,-500.0,0.00016986,2]
[338580689,1726745458270,-353.85,0.00016986,2]
[338580690,1726745458279,-779.56,0.00016986,2]
[338580691,1726745458289,-500.0,0.00016986,2]
[338580692,1726745458299,-1832.39,0.00016986,2]
[338580693,1726745458308,-909.538123,0.00016986,2]
[338580694,1726745458318,-909.538123,0.00016986,2]
[338580695,1726745458327,-1110.08,0.00016986,2]
[338580696,1726745458337,-909.538123,0.00016986,2]
[338580697,1726745458346,-909.538123,0.00016986,2]
[338580698,1726745458356,-500.0,0.00016986,2]
[338580699,1726745458365,-500.0,0.00016986,2]
[338580700,1726745458374,-852.45,0.00016986,2]
[338580701,1726745458384,-500.0,0.00016986,2]
[338580702,1726745458395,-500.0,0.00016986,2]
[338580703,1726745458404,-500.0,0.00016986,2]
[338580704,1726745458413,-1334.66,0.00016986,2]
[338580705,1726745458423,-656.54711218,0.00016986,2]
[338580706,1726745459213,-500.0,0.00016438,2]
[338580707,1726745459222,-500.0,0.00016438,2]
[338580708,1726745459232,-500.0,0.00016438,2]
[338580709,1726745459242,-500.0,0.00016712,2]
[338580710,1726745459252,-500.0,0.00016712,2]
[338580711,1726745459262,-269.37288782,0.00016986,2]
[338580712,1726745459272,-1089.03,0.00016986,2]
[338580713,1726745459282,-546.41,0.00016986,2]
[338580714,1726745459291,-500.0,0.00016986,2]
[338580715,1726745459301,-500.0,0.00016986,2]
[338580716,1726745459311,-480.91,0.00016986,2]
[338580717,1726745459320,-500.0,0.00016986,2]
[338580718,1726745459329,-500.0,0.00016986,2]
[338580719,1726745459339,-500.0,0.00016986,2]
[338580720,1726745459348,-1783.2,0.00016986,2]
[338580721,1726745459358,-500.0,0.00016986,2]
[338580722,1726745459367,-500.0,0.00016986,2]
[338580723,1726745459377,-500.0,0.00016986,2]
[338580724,1726745459387,-553.940828,0.00016986,2]
[338580725,1726745459398,-553.940828,0.00016986,2]
[338580726,1726745459416,-500.0,0.00016986,2]
[338580727,1726745459425,-500.0,0.00016986,2]
[338580728,1726745459435,-553.940828,0.00016986,2]
[338580729,1726745459444,-553.940828,0.00016986,2]
[338580730,1726745459454,-500.0,0.00016986,2]
[338580731,1726745459463,-500.0,0.00016986,2]
[338580732,1726745459475,-606.66,0.00016986,2]
[338580733,1726745459484,-500.86953137,0.00016986,2]
[338580734,1726745459494,-500.0,0.00016986,2]
[338580735,1726745459504,-965.09,0.00016986,2]
[338580736,1726745459513,-500.0,0.00016986,2]
[338580737,1726745459523,-532.620686,0.00016986,2]
[338580738,1726745459532,-573.61879901,0.00016986,2]
[338580739,1726745459542,-532.620686,0.00016986,2]
[338580740,1726745459551,-511.19,0.00016986,2]
[338580741,1726745459561,-532.620686,0.00016986,2]
[338580742,1726745459570,-500.0,0.00016986,2]
[338580743,1726745459579,-532.620686,0.00016986,2]
[338580744,1726745459589,-543.49,0.00016986,2]
[338580745,1726745459599,-3975.93,0.00016986,2]
[338580746,1726745459608,-500.62015098,0.00016986,2]
[338580747,1726745459618,-151.0,0.00016986,2]
[338580748,1726745459627,-151.0,0.00016986,2]
[338580749,1726745459637,-500.0,0.00016986,2]
[338580750,1726745459647,-500.0,0.00016986,2]
[338580751,1726745459656,-389.0891559,0.00016986,2]
[338580752,1726745459665,-500.0,0.00016986,2]
[338580753,1726745459676,-961.19,0.00016986,2]
[338580754,1726745459686,-500.0,0.00016986,2]
[338580755,1726745459696,-686.28,0.00016986,2]
[338580756,1726745459705,-670.64,0.00016986,2]
[338580757,1726745459715,-503.6,0.00016986,2]
[338580758,1726745459724,-500.0,0.00016986,2]
[338580759,1726745459733,-847.91,0.00016986,2]
[338580760,1726745459743,-1204.43,0.00016986,2]
[338580761,1726745459752,-500.0,0.00016986,2]
[338580762,1726745459762,-910.872847,0.00016986,2]
[338580763,1726745459771,-602.3,0.00016986,2]
[338580764,1726745459780,-570.62,0.00016986,2]
[338580765,1726745459790,-910.872847,0.00016986,2]
[338580766,1726745459799,-642.21386475,0.00016986,2]
[338580767,1726745459825,-500.0,0.00016712,2]
[338580768,1726745459836,-268.65898225,0.00016986,2]
[338580769,1726745459846,-910.872847,0.00016986,2]
[338580770,1726745459859,-902.69,0.00016986,2]
[338580771,1726745459869,-500.0,0.00016986,2]
[338580772,1726745459878,-1355.041912,0.00016986,2]
[338580773,1726745459887,-1355.041912,0.00016986,2]
[338580774,1726745459902,-500.0,0.00016986,2]
[338580775,1726745459912,-1355.041912,0.00016986,2]
[338580776,1726745459922,-1355.041912,0.00016986,2]
[338580777,1726745459931,-500.0,0.00016986,2]
[338580778,1726745459939,-183.357962,0.00016986,2]
[338580779,1726745459948,-500.0,0.00016986,2]
[338580780,1726745459957,-183.357962,0.00016986,2]
[338580781,1726745459967,-500.0,0.00016986,2]
[338580782,1726745459976,-500.0,0.00016986,2]
[338580783,1726745459985,-183.357962,0.00016986,2]
[338580784,1726745459995,-500.0,0.00016986,2]
[338580785,1726745460005,-500.0,0.00016986,2]
[338580786,1726745460014,-183.357962,0.00016986,2]
[338580787,1726745460024,-500.0,0.00016986,2]
[338580788,1726745460034,-500.0,0.00016986,2]
[338580789,1726745460043,-564.57,0.00016986,2]
[338580790,1726745460053,-523.54,0.00016986,2]
[338580791,1726745460063,-500.0,0.00016986,2]
[338580792,1726745460073,-536.2,0.00016986,2]
[338580793,1726745460083,-500.0,0.00016986,2]
[338580794,1726745460092,-1023.18,0.00016986,2]
[338580795,1726745460101,-512.62,0.00016986,2]
[338580796,1726745460111,-2939.861116,0.00016986,2]
[338580797,1726745460120,-500.0,0.00016986,2]
[338580798,1726745460130,-2939.861116,0.00016986,2]
[338580799,1726745460139,-3488.81,0.00016986,2]
[338580800,1726745460151,-395.19,0.00016986,2]
[338580801,1726745460161,-2939.861116,0.00016986,2]
[338580802,1726745460170,-2939.861116,0.00016986,2]
[338580803,1726745460180,-500.0,0.00016986,2]
[338580804,1726745460190,-1006.39,0.00016986,2]
[338580805,1726745460200,-500.0,0.00016986,2]
[338580806,1726745460209,-500.0,0.00016986,2]
[338580807,1726745460219,-384.644994,0.00016986,2]
[338580808,1726745460228,-384.644994,0.00016986,2]
[338580809,1726745460238,-553.21,0.00016986,2]
[338580810,1726745460248,-500.0,0.00016986,2]
[338580811,1726745460258,-151.0,0.00016986,2]
[338580812,1726745460267,-151.0,0.00016986,2]
[338580813,1726745460277,-500.0,0.00016986,2]
[338580814,1726745460287,-384.644994,0.00016986,2]
[338580815,1726745460296,-898.1,0.00016986,2]